Workbook

Sheet EXCEL.WEBKYNANG.VN
B1: BẢNG KÊ CHI TIẾT CHI PHÍ DỰ KIẾN - MỞ QUÁN CAFÉ
B3: ĐỊNH PHÍ (F) | D3: =ROUND((D5+D8+D13+D28+D32+D34+D36),-1) -> 298597920 | F3: BIẾN PHÍ ĐƠN VỊ (V) | G3: =G5+G8 -> 15750 | I3: CHI PHÍ XÂY DỰNG | J3: =J5+J17+J31+J39 -> 1257400000
B5: 1./ MẶT BẰNG | D5: =D6 -> 70000000 | F5: 1./ NGUYÊN VẬT LIỆU | G5: =(G6*$G$11)/100 -> 15750 | I5: XÂY DỰNG | J5: =SUM(J6:J16) -> 520000000
B6: Thuê theo tháng | D6: 70000000 | F6: Định mức trên giá bán (%) | G6: 35 | I6: Công xây dựng | J6: 120000000
I7: Kính | J7: 20000000
B8: 2./ XÂY DỰNG | D8: =D11 -> 13097920 | F8: 2./ ĐỊNH MỨC KHÁC | G8: =(G11*G9)/100 -> 0 | I8: Bàn ghế | J8: 240000000
B9: Tổng chi phí xây dựng | D9: =J3 -> 1257400000 | F9: Định mức trên giá bán (%) | G9: 0 | I9: Ốp alu | J9: 70000000
B10: Phân bổ trong (Năm) | C10: =D10*12 -> 96 | D10: 8 | J10: 0
B11: Phân cho từng tháng | D11: =ROUND(D9/C10,-1) -> 13097920 | F11: 3./ GIÁ BÁN | G11: 45000 | I11: Thạch cao | J11: 20000000
I12: Sơn nước | J12: 10000000
B13: 3./ CHI PHÍ NHÂN VIÊN | D13: =SUM(D22:D26) -> 176000000 | I13: Toilet | J13: 30000000
B14: * Số lượng nhân viên | D14: Bảng lương | F14: ĐƠN VỊ TÍNH | G14: VND | I14: Cửa cuốn | J14: 10000000
B15: Quản lý | C15: 2 | D15: 16000000 | I15: Phun sương | J15: 0
B16: Pha chế | C16: 4 | D16: 6400000
B17: Phục vụ | C17: 12 | D17: 5400000 | I17: TRANG TRÍ | J17: =SUM(J18:J30) -> 270400000
B18: Thu ngân | C18: 4 | D18: 5400000 | I18: Tranh dán tường | J18: 4000000
B19: Bảo vệ | C19: 4 | D19: 8000000 | I19: Bể cá | J19: 12000000
B20: Tổng số nhân viên | C20: =SUM(C15:C19) -> 26 | I20: Cây trồng | J20: 8000000
B21: * Tổng Lương | I21: Kệ để cà phê | J21: 4000000
B22: Quản lý | D22: =D15*C15 -> 32000000 | I22: Tủ treo tường | J22: 12000000
B23: Pha chế | D23: =D16*C16 -> 25600000 | I23: Máy lạnh | J23: 70000000
B24: Phục vụ | D24: =D17*C17 -> 64800000 | I24: Tivi | J24: 60000000
B25: Thu ngân | D25: =D18*C18 -> 21600000 | I25: Bảng hiệu, hộp đèn | J25: 54000000
B26: Bảo vệ | D26: =D19*C19 -> 32000000 | I26: Mặt đá quầy bar | J26: 20000000
I27: Vẽ tranh tường | J27: 8000000
B28: 4./ PHÍ NHƯỢNG QUYỀN | D28: =D30 -> 4000000 | I28: Quạt hút | J28: 2400000
B29: Trong 5 năm | D29: 240000000 | I29: Đèn trang trí | J29: 16000000
B30: Phân bổ theo tháng | D30: =$D$29/(5*12) -> 4000000
I31: QUẦY BAR | J31: =SUM(J32:J38) -> 419000000
B32: 5./ INTERNET | D32: 1500000 | I32: Máy pha cà phê | J32: 240000000
I33: Máy xay cà phê | J33: 40000000
B34: 6./ ĐIỆN + NƯỚC | D34: 10000000 | I34: Máy xay sinh tố 2 cối | J34: 48000000
I35: Thùng đá | J35: 11000000
B36: 7./ KHÁC | D36: =SUM(D37:D52) -> 24000000 | I36: Dụng cụ + Nguyên vật liệu | J36: 60000000
B37: Công an | D37: 2000000 | I37: Bồn rửa ly + Kệ ly + … | J37: 20000000
B38: Thuế khoán | D38: 2000000
B39: Chi phí vận hành chung | D39: 20000000 | I39: KHÁC | J39: =SUM(J40:J52) -> 48000000
I40: Internet + K+ | J40: 6000000
I41: Camera | J41: 20000000
I42: Đồng phục | J42: 8000000
I43: Phần mềm tính tiền | J43: 5000000
I44: Máy in bill | J44: 3000000
I45: Két tiền | J45: 2000000
I46: Loa + Amply | J46: 4000000
I47: Máy chiếu | J47: 0
B51: DOWNLOAD NHIỀU MẪU FILE EXCEL HAY KHÁC TẠI EXCEL.WEBKYNANG.VN -> CLICK HERE
